[Event "Titled Tuesday Blitz February 22 Early 2022"]
[White "Ardila, Oscar Humberto"]
[Black "Dauner, Benedikt"]
[WhiteFideId "4404742"]
[BlackFideId "16225899"]
[WhiteElo "1898"]
[BlackElo "2230"]
[Result "0-1"]
[Round "06"]
[TimeControl "180+1"]
[Date "2022.02.22"]
[WhiteClock "0:00:11"]
[BlackClock "0:01:47"]

1. d4 {[%clk 0:02:59]}  Nf6 {[%clk 0:02:56]} 2. c4 {[%clk 0:02:59]}  g6 {[%clk 0:02:50]} 3. Nc3 {[%clk 0:02:58]}  Bg7 {[%clk 0:02:51]} 4. e4 {[%clk 0:02:58]}  O-O {[%clk 0:02:52]} 5. Nf3 {[%clk 0:02:58]}  d6 {[%clk 0:02:52]} 6. Be2 {[%clk 0:02:58]}  Nc6 {[%clk 0:02:52]} 7. O-O {[%clk 0:02:58]}  e5 {[%clk 0:02:53]} 8. d5 {[%clk 0:02:58]}  Ne7 {[%clk 0:02:53]} 9. b4 {[%clk 0:02:54]}  a5 {[%clk 0:02:53]} 10. bxa5 {[%clk 0:02:46]}  Nd7 {[%clk 0:02:52]} 11. Bg5 {[%clk 0:02:38]}  h6 {[%clk 0:02:49]} 12. Bxe7 {[%clk 0:02:30]}  Qxe7 {[%clk 0:02:50]} 13. Nb5 {[%clk 0:02:27]}  Nc5 {[%clk 0:02:50]} 14. Qc2 {[%clk 0:02:24]}  f5 {[%clk 0:02:48]} 15. Nd2 {[%clk 0:02:24]}  f4 {[%clk 0:02:47]} 16. Qd1 {[%clk 0:02:22]}  Rxa5 {[%clk 0:02:44]} 17. Bg4 {[%clk 0:02:20]}  Bxg4 {[%clk 0:02:41]} 18. Qxg4 {[%clk 0:02:19]}  Kh7 {[%clk 0:02:42]} 19. Nb3 {[%clk 0:02:14]}  Rxb5 {[%clk 0:02:33]} 20. cxb5 {[%clk 0:02:11]}  Nxe4 {[%clk 0:02:34]} 21. Qe6 {[%clk 0:02:04]}  Qg5 {[%clk 0:02:31]} 22. f3 {[%clk 0:01:55]}  Nc3 {[%clk 0:02:27]} 23. Rae1 {[%clk 0:01:43]}  e4 {[%clk 0:02:23]} 24. Rxe4 {[%clk 0:01:10]}  Nxe4 {[%clk 0:02:21]} 25. Qxe4 {[%clk 0:01:10]}  Ra8 {[%clk 0:02:13]} 26. a4 {[%clk 0:01:09]}  Qe5 {[%clk 0:02:12]} 27. Re1 {[%clk 0:01:02]}  Rxa4 {[%clk 0:02:09]} 28. Qxe5 {[%clk 0:00:57]}  Bxe5 {[%clk 0:02:10]} 29. Rc1 {[%clk 0:00:54]}  Rb4 {[%clk 0:02:07]} 30. Rxc7+ {[%clk 0:00:53]}  Kg8 {[%clk 0:02:07]} 31. Nd2 {[%clk 0:00:41]}  Rxb5 {[%clk 0:02:06]} 32. Ne4 {[%clk 0:00:39]}  Rb1+ {[%clk 0:02:00]} 33. Kf2 {[%clk 0:00:38]}  Rb2+ {[%clk 0:02:00]} 34. Kf1 {[%clk 0:00:37]}  b5 {[%clk 0:02:00]} 35. g3 {[%clk 0:00:34]}  g5 {[%clk 0:01:59]} 36. gxf4 {[%clk 0:00:33]}  gxf4 {[%clk 0:01:59]} 37. h4 {[%clk 0:00:31]}  b4 {[%clk 0:02:00]} 38. h5 {[%clk 0:00:30]}  b3 {[%clk 0:02:00]} 39. Rb7 {[%clk 0:00:30]}  Rb1+ {[%clk 0:02:00]} 40. Ke2 {[%clk 0:00:29]}  b2 {[%clk 0:02:01]} 41. Nd2 {[%clk 0:00:29]}  Rh1 {[%clk 0:01:58]} 42. Kd3 {[%clk 0:00:27]}  Rxh5 {[%clk 0:01:57]} 43. Ke4 {[%clk 0:00:26]}  Rh2 {[%clk 0:01:56]} 44. Nb1 {[%clk 0:00:26]}  Rh1 {[%clk 0:01:56]} 45. Na3 {[%clk 0:00:26]}  Ra1 {[%clk 0:01:56]} 46. Rb8+ {[%clk 0:00:15]}  Kh7 {[%clk 0:01:55]} 47. Kf5 {[%clk 0:00:12]}  Rxa3 {[%clk 0:01:52]} 48. Rb7+ {[%clk 0:00:13]}  Bg7 {[%clk 0:01:52]} 49. Ke6 {[%clk 0:00:12]}  Ra6 {[%clk 0:01:47]} 50. Kf5 {[%clk 0:00:11]}  Ra1 {[%clk 0:01:46]} 51. Ke6 {[%clk 0:00:11]}  b1=Q {[%clk 0:01:47]} 0-1


[Site "https://www.chess.com"]

[Event "Titled Tuesday Blitz February 22 Early 2022"]
[White "Atakhan, Abtin"]
[Black "Buscar, Michael"]
[WhiteFideId "22502203"]
[BlackFideId "2603616"]
[WhiteElo "2119"]
[BlackElo "2010"]
[Result "1-0"]
[Round "06"]
[TimeControl "180+1"]
[Date "2022.02.22"]
[WhiteClock "0:00:14"]
[BlackClock "0:00:01"]

1. e4 {[%clk 0:03:00]}  e5 {[%clk 0:02:59]} 2. Nf3 {[%clk 0:03:00]}  Nf6 {[%clk 0:02:59]} 3. Nxe5 {[%clk 0:03:00]}  d6 {[%clk 0:02:59]} 4. Nf3 {[%clk 0:03:00]}  Nxe4 {[%clk 0:02:59]} 5. Nc3 {[%clk 0:03:01]}  Nxc3 {[%clk 0:02:58]} 6. dxc3 {[%clk 0:03:02]}  Be7 {[%clk 0:02:55]} 7. Be3 {[%clk 0:03:02]}  Be6 {[%clk 0:02:54]} 8. Qd2 {[%clk 0:03:02]}  Nd7 {[%clk 0:02:50]} 9. O-O-O {[%clk 0:03:02]}  Nb6 {[%clk 0:02:44]} 10. Kb1 {[%clk 0:02:53]}  Nc4 {[%clk 0:02:38]} 11. Bxc4 {[%clk 0:02:54]}  Bxc4 {[%clk 0:02:38]} 12. Qd4 {[%clk 0:02:54]}  Be6 {[%clk 0:02:35]} 13. Qxg7 {[%clk 0:02:53]}  Bf6 {[%clk 0:02:35]} 14. Qh6 {[%clk 0:02:46]}  Rg8 {[%clk 0:02:18]} 15. Bd4 {[%clk 0:02:36]}  Bxd4 {[%clk 0:01:26]} 16. Nxd4 {[%clk 0:02:35]}  Qd7 {[%clk 0:01:18]} 17. Qxh7 {[%clk 0:02:22]}  O-O-O {[%clk 0:01:18]} 18. Nxe6 {[%clk 0:02:09]}  Qxe6 {[%clk 0:01:12]} 19. g3 {[%clk 0:02:04]}  Rg6 {[%clk 0:01:05]} 20. h4 {[%clk 0:01:49]}  Qf6 {[%clk 0:00:59]} 21. h5 {[%clk 0:01:41]}  Rh6 {[%clk 0:00:57]} 22. Qd3 {[%clk 0:01:33]}  Qxf2 {[%clk 0:00:56]} 23. Rdf1 {[%clk 0:01:29]}  Qg2 {[%clk 0:00:55]} 24. Qf5+ {[%clk 0:01:19]}  Kb8 {[%clk 0:00:52]} 25. g4 {[%clk 0:01:15]}  f6 {[%clk 0:00:47]} 26. Rhg1 {[%clk 0:00:59]}  Qc6 {[%clk 0:00:44]} 27. Qe6 {[%clk 0:00:50]}  Qc5 {[%clk 0:00:37]} 28. Rg2 {[%clk 0:00:45]}  Qg5 {[%clk 0:00:14]} 29. a3 {[%clk 0:00:19]}  a6 {[%clk 0:00:07]} 30. Rgf2 {[%clk 0:00:18]}  Rg8 {[%clk 0:00:06]} 31. Rxf6 {[%clk 0:00:15]}  Rxf6 {[%clk 0:00:04]} 32. Rxf6 {[%clk 0:00:15]}  Qxg4 {[%clk 0:00:05]} 33. Rf8+ {[%clk 0:00:14]}  Ka7 {[%clk 0:00:01]} 34. Qxg8 {[%clk 0:00:14]} 1-0


[Site "https://www.chess.com"]

[Event "Titled Tuesday Blitz February 22 Early 2022"]
[White "Bashirli, Saadat"]
[Black "Viskelis, Darius"]
[WhiteFideId "13429990"]
[BlackFideId "12800830"]
[WhiteElo "1173"]
[BlackElo "1999"]
[Result "1-0"]
[Round "06"]
[TimeControl "180+1"]
[Date "2022.02.22"]
[WhiteClock "0:00:12"]
[BlackClock "0:00:03"]

1. d4 {[%clk 0:03:00]}  d5 {[%clk 0:02:59]} 2. Bg5 {[%clk 0:02:59]}  Nf6 {[%clk 0:02:59]} 3. Nd2 {[%clk 0:02:57]}  Bf5 {[%clk 0:02:57]} 4. e3 {[%clk 0:02:55]}  e6 {[%clk 0:02:57]} 5. c4 {[%clk 0:02:54]}  Be7 {[%clk 0:02:55]} 6. c5 {[%clk 0:02:51]}  Nc6 {[%clk 0:02:50]} 7. Ngf3 {[%clk 0:02:49]}  Nb4 {[%clk 0:02:48]} 8. Qa4+ {[%clk 0:02:46]}  Nc6 {[%clk 0:02:46]} 9. Ne5 {[%clk 0:02:45]}  O-O {[%clk 0:02:45]} 10. Nxc6 {[%clk 0:02:41]}  bxc6 {[%clk 0:02:46]} 11. Be2 {[%clk 0:02:39]}  Rb8 {[%clk 0:02:45]} 12. b4 {[%clk 0:02:26]}  h6 {[%clk 0:02:36]} 13. Bxf6 {[%clk 0:02:24]}  Bxf6 {[%clk 0:02:35]} 14. O-O {[%clk 0:02:25]}  e5 {[%clk 0:02:32]} 15. Nf3 {[%clk 0:02:21]}  e4 {[%clk 0:02:24]} 16. Nd2 {[%clk 0:02:18]}  g6 {[%clk 0:02:13]} 17. a3 {[%clk 0:02:17]}  Qd7 {[%clk 0:02:11]} 18. Rac1 {[%clk 0:02:09]}  h5 {[%clk 0:02:10]} 19. Qd1 {[%clk 0:02:04]}  h4 {[%clk 0:02:09]} 20. g3 {[%clk 0:02:01]}  Kg7 {[%clk 0:02:01]} 21. f3 {[%clk 0:01:56]}  hxg3 {[%clk 0:01:52]} 22. hxg3 {[%clk 0:01:54]}  Rh8 {[%clk 0:01:48]} 23. f4 {[%clk 0:01:51]}  Rh3 {[%clk 0:01:28]} 24. Kf2 {[%clk 0:01:42]}  Rbh8 {[%clk 0:01:11]} 25. Rg1 {[%clk 0:01:37]}  Qe7 {[%clk 0:00:41]} 26. Rg2 {[%clk 0:01:32]}  Bc8 {[%clk 0:00:32]} 27. Qc2 {[%clk 0:01:27]}  Bh4 {[%clk 0:00:31]} 28. Rcg1 {[%clk 0:01:20]}  Bf6 {[%clk 0:00:27]} 29. Nf1 {[%clk 0:01:17]}  Qe8 {[%clk 0:00:19]} 30. a4 {[%clk 0:01:12]}  Bd7 {[%clk 0:00:17]} 31. Qc3 {[%clk 0:01:01]}  Qb8 {[%clk 0:00:16]} 32. Nd2 {[%clk 0:00:58]}  Qe8 {[%clk 0:00:15]} 33. Bf1 {[%clk 0:00:53]}  Bg4 {[%clk 0:00:13]} 34. b5 {[%clk 0:00:49]}  cxb5 {[%clk 0:00:13]} 35. axb5 {[%clk 0:00:49]}  R8h5 {[%clk 0:00:10]} 36. Qb3 {[%clk 0:00:44]}  Bf3 {[%clk 0:00:10]} 37. Nxf3 {[%clk 0:00:40]}  exf3 {[%clk 0:00:11]} 38. Kxf3 {[%clk 0:00:41]}  Qe4+ {[%clk 0:00:11]} 39. Kf2 {[%clk 0:00:41]}  Bxd4 {[%clk 0:00:09]} 40. exd4 {[%clk 0:00:40]}  Qxd4+ {[%clk 0:00:09]} 41. Qe3 {[%clk 0:00:41]}  Qb2+ {[%clk 0:00:09]} 42. Be2 {[%clk 0:00:41]}  Rh8 {[%clk 0:00:07]} 43. Qe5+ {[%clk 0:00:39]}  Qxe5 {[%clk 0:00:07]} 44. fxe5 {[%clk 0:00:40]}  Re8 {[%clk 0:00:06]} 45. Ra1 {[%clk 0:00:35]}  Rxe5 {[%clk 0:00:05]} 46. Rxa7 {[%clk 0:00:33]}  Re7 {[%clk 0:00:05]} 47. b6 {[%clk 0:00:31]}  d4 {[%clk 0:00:03]} 48. bxc7 {[%clk 0:00:30]}  Rh8 {[%clk 0:00:03]} 49. Bd3 {[%clk 0:00:19]}  Rc8 {[%clk 0:00:03]} 50. Kf3 {[%clk 0:00:15]}  Re3+ {[%clk 0:00:02]} 51. Kf4 {[%clk 0:00:13]}  Rxd3 {[%clk 0:00:03]} 52. Rb2 {[%clk 0:00:12]} 1-0


[Site "https://www.chess.com"]

[Event "Titled Tuesday Blitz February 22 Early 2022"]
[White "Bazarov, Konstantin"]
[Black "Prohorov, Olexandr"]
[WhiteFideId "4137000"]
[BlackFideId "14105578"]
[WhiteElo "2079"]
[BlackElo "1993"]
[Result "1-0"]
[Round "06"]
[TimeControl "180+1"]
[Date "2022.02.22"]
[WhiteClock "0:01:58"]
[BlackClock "0:00:18"]

1. d4 {[%clk 0:03:00]}  g6 {[%clk 0:02:53]} 2. c4 {[%clk 0:03:00]}  Bg7 {[%clk 0:02:46]} 3. Nf3 {[%clk 0:03:01]}  c5 {[%clk 0:02:45]} 4. d5 {[%clk 0:03:00]}  f5 {[%clk 0:02:42]} 5. g3 {[%clk 0:02:55]}  Nf6 {[%clk 0:02:42]} 6. Bg2 {[%clk 0:02:55]}  d6 {[%clk 0:02:43]} 7. O-O {[%clk 0:02:55]}  O-O {[%clk 0:02:37]} 8. Nc3 {[%clk 0:02:55]}  Na6 {[%clk 0:02:37]} 9. e4 {[%clk 0:02:53]}  fxe4 {[%clk 0:02:36]} 10. Ng5 {[%clk 0:02:53]}  Nc7 {[%clk 0:02:35]} 11. a4 {[%clk 0:02:47]}  b6 {[%clk 0:02:24]} 12. Ngxe4 {[%clk 0:02:44]}  Rb8 {[%clk 0:02:23]} 13. Bg5 {[%clk 0:02:33]}  a6 {[%clk 0:02:21]} 14. Nxf6+ {[%clk 0:02:32]}  Bxf6 {[%clk 0:02:19]} 15. Bxf6 {[%clk 0:02:32]}  Rxf6 {[%clk 0:02:20]} 16. Qe2 {[%clk 0:02:31]}  e5 {[%clk 0:01:23]} 17. dxe6 {[%clk 0:02:25]}  Rxe6 {[%clk 0:01:20]} 18. Qd3 {[%clk 0:02:24]}  Bb7 {[%clk 0:01:14]} 19. Nd5 {[%clk 0:02:07]}  Nxd5 {[%clk 0:00:26]} 20. Bxd5 {[%clk 0:02:05]}  Bxd5 {[%clk 0:00:25]} 21. Qxd5 {[%clk 0:02:04]}  Qf6 {[%clk 0:00:25]} 22. Rfe1 {[%clk 0:02:02]}  Kf7 {[%clk 0:00:25]} 23. Re4 {[%clk 0:01:59]}  Re8 {[%clk 0:00:18]} 24. Rf4 {[%clk 0:01:58]} 1-0


[Site "https://www.chess.com"]

[Event "Titled Tuesday Blitz February 22 Early 2022"]
[White "Berezin, Viktor"]
[Black "Petrovic, Aleksa"]
[WhiteFideId "14107872"]
[BlackFideId "967629"]
[WhiteElo "2310"]
[BlackElo "2139"]
[Result "0-1"]
[Round "06"]
[TimeControl "180+1"]
[Date "2022.02.22"]
[WhiteClock "0:00:05"]
[BlackClock "0:00:06"]

1. d4 {[%clk 0:02:47]}  d6 {[%clk 0:02:56]} 2. Nf3 {[%clk 0:02:46]}  Bg4 {[%clk 0:02:55]} 3. h3 {[%clk 0:02:45]}  Bxf3 {[%clk 0:02:55]} 4. exf3 {[%clk 0:02:44]}  d5 {[%clk 0:02:55]} 5. c4 {[%clk 0:02:44]}  dxc4 {[%clk 0:02:53]} 6. Bxc4 {[%clk 0:02:43]}  e6 {[%clk 0:02:45]} 7. Nc3 {[%clk 0:02:42]}  c6 {[%clk 0:02:45]} 8. O-O {[%clk 0:02:41]}  Nf6 {[%clk 0:02:44]} 9. Bf4 {[%clk 0:02:38]}  Bd6 {[%clk 0:02:41]} 10. Qd2 {[%clk 0:02:34]}  Qc7 {[%clk 0:02:32]} 11. Bxd6 {[%clk 0:02:32]}  Qxd6 {[%clk 0:02:33]} 12. Ne4 {[%clk 0:02:33]}  Qe7 {[%clk 0:02:31]} 13. Nxf6+ {[%clk 0:02:32]}  Qxf6 {[%clk 0:02:32]} 14. Rfe1 {[%clk 0:02:32]}  O-O {[%clk 0:02:28]} 15. Rad1 {[%clk 0:02:31]}  Nd7 {[%clk 0:02:28]} 16. Bd3 {[%clk 0:02:31]}  Nb6 {[%clk 0:02:24]} 17. Bb1 {[%clk 0:02:30]}  Rfd8 {[%clk 0:02:16]} 18. Qd3 {[%clk 0:02:27]}  g6 {[%clk 0:02:14]} 19. b3 {[%clk 0:02:20]}  Rd6 {[%clk 0:02:11]} 20. Qe3 {[%clk 0:02:11]}  Rad8 {[%clk 0:02:09]} 21. Rd2 {[%clk 0:01:51]}  Rxd4 {[%clk 0:02:05]} 22. Red1 {[%clk 0:01:50]}  Rxd2 {[%clk 0:02:01]} 23. Rxd2 {[%clk 0:01:51]}  Rxd2 {[%clk 0:01:59]} 24. Qxd2 {[%clk 0:01:52]}  Qa1 {[%clk 0:01:58]} 25. Qd3 {[%clk 0:01:44]}  Nd5 {[%clk 0:01:52]} 26. Kh2 {[%clk 0:01:43]}  Qe5+ {[%clk 0:01:43]} 27. g3 {[%clk 0:01:39]}  Qe1 {[%clk 0:01:40]} 28. Kg2 {[%clk 0:01:38]}  h5 {[%clk 0:01:33]} 29. h4 {[%clk 0:01:35]}  Nc3 {[%clk 0:01:11]} 30. Qd8+ {[%clk 0:01:15]}  Kg7 {[%clk 0:01:08]} 31. Bxg6 {[%clk 0:01:11]}  Qe5 {[%clk 0:00:36]} 32. Bc2 {[%clk 0:00:47]}  Nd5 {[%clk 0:00:35]} 33. Be4 {[%clk 0:00:34]}  Nf6 {[%clk 0:00:30]} 34. Bd3 {[%clk 0:00:25]}  Qb2 {[%clk 0:00:24]} 35. Qc7 {[%clk 0:00:17]}  Qd2 {[%clk 0:00:20]} 36. Bc4 {[%clk 0:00:14]}  Nd5 {[%clk 0:00:10]} 37. Qe5+ {[%clk 0:00:12]}  Kf8 {[%clk 0:00:07]} 38. Bxd5 {[%clk 0:00:11]}  cxd5 {[%clk 0:00:07]} 39. Qb8+ {[%clk 0:00:10]}  Ke7 {[%clk 0:00:07]} 40. Qxa7 {[%clk 0:00:11]}  d4 {[%clk 0:00:05]} 41. Qxb7+ {[%clk 0:00:10]}  Kf6 {[%clk 0:00:05]} 42. Qe4 {[%clk 0:00:07]}  d3 {[%clk 0:00:05]} 43. Qd4+ {[%clk 0:00:07]}  Ke7 {[%clk 0:00:04]} 44. Qa7+ {[%clk 0:00:07]}  Kd6 {[%clk 0:00:04]} 45. Qd4+ {[%clk 0:00:07]}  Kc6 {[%clk 0:00:04]} 46. Qc4+ {[%clk 0:00:07]}  Kb6 {[%clk 0:00:05]} 47. Qd4+ {[%clk 0:00:07]}  Kb5 {[%clk 0:00:03]} 48. Qc4+ {[%clk 0:00:07]}  Kb6 {[%clk 0:00:03]} 49. Qd4+ {[%clk 0:00:07]}  Kc7 {[%clk 0:00:04]} 50. Qc4+ {[%clk 0:00:07]}  Kd7 {[%clk 0:00:04]} 51. Qd4+ {[%clk 0:00:08]}  Ke7 {[%clk 0:00:05]} 52. Qc5+ {[%clk 0:00:07]}  Kf6 {[%clk 0:00:04]} 53. Qd4+ {[%clk 0:00:08]}  Kg6 {[%clk 0:00:05]} 54. Qe4+ {[%clk 0:00:08]}  Kg7 {[%clk 0:00:04]} 55. Qe5+ {[%clk 0:00:08]}  f6 {[%clk 0:00:04]} 56. Qc7+ {[%clk 0:00:07]}  Kg6 {[%clk 0:00:04]} 57. Qd7 {[%clk 0:00:07]}  Qe2 {[%clk 0:00:03]} 58. Qe8+ {[%clk 0:00:07]}  Kg7 {[%clk 0:00:03]} 59. Qe7+ {[%clk 0:00:07]}  Kg6 {[%clk 0:00:03]} 60. Qe8+ {[%clk 0:00:06]}  Kh7 {[%clk 0:00:03]} 61. Qxh5+ {[%clk 0:00:06]}  Kg7 {[%clk 0:00:03]} 62. Qg4+ {[%clk 0:00:06]}  Kf7 {[%clk 0:00:04]} 63. Qh5+ {[%clk 0:00:07]}  Ke7 {[%clk 0:00:04]} 64. Qh7+ {[%clk 0:00:07]}  Kd6 {[%clk 0:00:05]} 65. Qh8 {[%clk 0:00:07]}  d2 {[%clk 0:00:05]} 66. Qd8+ {[%clk 0:00:07]}  Kc5 {[%clk 0:00:04]} 67. Qc7+ {[%clk 0:00:07]}  Kb4 {[%clk 0:00:05]} 68. Qd6+ {[%clk 0:00:07]}  Kc3 {[%clk 0:00:05]} 69. Qc5+ {[%clk 0:00:07]}  Kb2 {[%clk 0:00:05]} 70. Qd4+ {[%clk 0:00:07]}  Kc2 {[%clk 0:00:05]} 71. Qc5+ {[%clk 0:00:05]}  Kb1 {[%clk 0:00:06]} 0-1


[Site "https://www.chess.com"]

[Event "Titled Tuesday Blitz February 22 Early 2022"]
[White "Bernadskiy, Vitaliy"]
[Black "Paravyan, David"]
[WhiteFideId "14100371"]
[BlackFideId "4194985"]
[WhiteElo "2473"]
[BlackElo "2569"]
[Result "0-1"]
[Round "06"]
[TimeControl "180+1"]
[Date "2022.02.22"]
[WhiteClock "0:00:01"]
[BlackClock "0:00:20"]

1. Nc3 {[%clk 0:03:00]}  Nf6 {[%clk 0:02:58]} 2. g4 {[%clk 0:03:00]}  Nxg4 {[%clk 0:02:56]} 3. e4 {[%clk 0:03:00]}  d6 {[%clk 0:02:55]} 4. d4 {[%clk 0:02:59]}  e5 {[%clk 0:02:55]} 5. Nf3 {[%clk 0:02:54]}  exd4 {[%clk 0:02:54]} 6. Nxd4 {[%clk 0:02:55]}  Nc6 {[%clk 0:02:47]} 7. Bb5 {[%clk 0:02:53]}  Bd7 {[%clk 0:02:42]} 8. Nxc6 {[%clk 0:02:53]}  bxc6 {[%clk 0:02:41]} 9. Bxc6 {[%clk 0:02:54]}  Bxc6 {[%clk 0:02:40]} 10. Qxg4 {[%clk 0:02:54]}  Qd7 {[%clk 0:02:38]} 11. Qg3 {[%clk 0:02:46]}  g6 {[%clk 0:02:32]} 12. Bf4 {[%clk 0:02:37]}  Bg7 {[%clk 0:02:30]} 13. O-O-O {[%clk 0:02:38]}  O-O {[%clk 0:02:28]} 14. Rhe1 {[%clk 0:02:36]}  Qe6 {[%clk 0:02:22]} 15. Kb1 {[%clk 0:02:19]}  Rab8 {[%clk 0:02:20]} 16. Bc1 {[%clk 0:02:09]}  Qc4 {[%clk 0:02:15]} 17. Rd3 {[%clk 0:01:46]}  Rfe8 {[%clk 0:02:13]} 18. b3 {[%clk 0:01:40]}  Bxe4 {[%clk 0:01:41]} 19. Nxe4 {[%clk 0:01:27]}  Rxe4 {[%clk 0:01:40]} 20. Ree3 {[%clk 0:01:15]}  Qc6 {[%clk 0:01:08]} 21. Rxe4 {[%clk 0:00:54]}  Qxe4 {[%clk 0:01:09]} 22. Qe3 {[%clk 0:00:54]}  Qe5 {[%clk 0:01:02]} 23. Qxe5 {[%clk 0:00:50]}  Bxe5 {[%clk 0:01:03]} 24. h3 {[%clk 0:00:46]}  f5 {[%clk 0:00:59]} 25. Be3 {[%clk 0:00:42]}  a6 {[%clk 0:00:54]} 26. Rd5 {[%clk 0:00:39]}  f4 {[%clk 0:00:51]} 27. Bc1 {[%clk 0:00:34]}  Kf7 {[%clk 0:00:38]} 28. Ra5 {[%clk 0:00:20]}  Ra8 {[%clk 0:00:37]} 29. c4 {[%clk 0:00:17]}  Ke6 {[%clk 0:00:37]} 30. Kc2 {[%clk 0:00:17]}  g5 {[%clk 0:00:36]} 31. Kd3 {[%clk 0:00:17]}  Kf5 {[%clk 0:00:32]} 32. f3 {[%clk 0:00:16]}  h5 {[%clk 0:00:31]} 33. Bb2 {[%clk 0:00:11]}  Re8 {[%clk 0:00:24]} 34. Bd4 {[%clk 0:00:03]}  g4 {[%clk 0:00:17]} 35. hxg4+ {[%clk 0:00:03]}  hxg4 {[%clk 0:00:18]} 36. fxg4+ {[%clk 0:00:03]}  Kxg4 {[%clk 0:00:19]} 37. Rxa6 {[%clk 0:00:03]}  Bxd4 {[%clk 0:00:19]} 38. Kxd4 {[%clk 0:00:04]}  f3 {[%clk 0:00:19]} 39. Ra5 {[%clk 0:00:01]}  f2 {[%clk 0:00:20]} 0-1


[Site "https://www.chess.com"]

[Event "Titled Tuesday Blitz February 22 Early 2022"]
[White "Bluebaum, Matthias"]
[Black "Gabdrakhmanov, Azat"]
[WhiteFideId "24651516"]
[BlackFideId "34189197"]
[WhiteElo "2550"]
[BlackElo "2279"]
[Result "1-0"]
[Round "06"]
[TimeControl "180+1"]
[Date "2022.02.22"]
[WhiteClock "0:01:41"]
[BlackClock "0:01:19"]

1. b3 {[%clk 0:03:00]}  Nf6 {[%clk 0:02:59]} 2. Bb2 {[%clk 0:03:01]}  e6 {[%clk 0:03:00]} 3. Nf3 {[%clk 0:03:01]}  Be7 {[%clk 0:03:00]} 4. c4 {[%clk 0:03:02]}  O-O {[%clk 0:03:01]} 5. Nc3 {[%clk 0:03:02]}  b6 {[%clk 0:03:01]} 6. Qc2 {[%clk 0:03:02]}  Bb7 {[%clk 0:03:02]} 7. g4 {[%clk 0:03:01]}  d5 {[%clk 0:02:57]} 8. g5 {[%clk 0:02:59]}  Ne4 {[%clk 0:02:55]} 9. Nxe4 {[%clk 0:02:56]}  dxe4 {[%clk 0:02:55]} 10. Qc3 {[%clk 0:02:56]}  f6 {[%clk 0:02:50]} 11. Nd4 {[%clk 0:02:56]}  Qd7 {[%clk 0:02:38]} 12. Bh3 {[%clk 0:02:53]}  Kh8 {[%clk 0:02:23]} 13. Nxe6 {[%clk 0:02:45]}  e3 {[%clk 0:02:23]} 14. Rg1 {[%clk 0:02:13]}  exf2+ {[%clk 0:02:15]} 15. Kxf2 {[%clk 0:02:08]}  Rf7 {[%clk 0:02:13]} 16. g6 {[%clk 0:01:59]}  hxg6 {[%clk 0:02:04]} 17. Rxg6 {[%clk 0:02:00]}  Qd6 {[%clk 0:01:52]} 18. Qg3 {[%clk 0:01:49]}  Qxg3+ {[%clk 0:01:44]} 19. hxg3 {[%clk 0:01:49]}  Bd6 {[%clk 0:01:34]} 20. Bg2 {[%clk 0:01:41]}  Bxg2 {[%clk 0:01:34]} 21. Kxg2 {[%clk 0:01:42]}  Nc6 {[%clk 0:01:31]} 22. Rh1+ {[%clk 0:01:42]}  Kg8 {[%clk 0:01:31]} 23. Bxf6 {[%clk 0:01:42]}  Re8 {[%clk 0:01:23]} 24. Bxg7 {[%clk 0:01:42]}  Rxe6 {[%clk 0:01:19]} 25. Rh8# {[%clk 0:01:41]} 1-0


[Site "https://www.chess.com"]

[Event "Titled Tuesday Blitz February 22 Early 2022"]
[White "Brodowski, Piotr"]
[Black "Ljukin, Sergei"]
[WhiteFideId "1124480"]
[BlackFideId "14102200"]
[WhiteElo "2422"]
[BlackElo "2312"]
[Result "0-1"]
[Round "06"]
[TimeControl "180+1"]
[Date "2022.02.22"]
[WhiteClock "0:00:03"]
[BlackClock "0:01:37"]

1. e4 {[%clk 0:03:00]}  e6 {[%clk 0:02:59]} 2. d4 {[%clk 0:02:59]}  d5 {[%clk 0:03:00]} 3. Nd2 {[%clk 0:02:59]}  Nf6 {[%clk 0:03:00]} 4. e5 {[%clk 0:02:56]}  Nfd7 {[%clk 0:03:00]} 5. f4 {[%clk 0:02:56]}  c5 {[%clk 0:03:01]} 6. c3 {[%clk 0:02:55]}  Nc6 {[%clk 0:03:01]} 7. Ndf3 {[%clk 0:02:55]}  Qb6 {[%clk 0:03:00]} 8. a3 {[%clk 0:02:55]}  cxd4 {[%clk 0:02:51]} 9. cxd4 {[%clk 0:02:55]}  Na5 {[%clk 0:02:52]} 10. Bd3 {[%clk 0:02:35]}  Nb3 {[%clk 0:02:50]} 11. Rb1 {[%clk 0:02:35]}  Nxd4 {[%clk 0:02:49]} 12. Nxd4 {[%clk 0:01:56]}  Qxd4 {[%clk 0:02:48]} 13. Nf3 {[%clk 0:01:56]}  Qb6 {[%clk 0:02:47]} 14. b4 {[%clk 0:01:56]}  a5 {[%clk 0:02:43]} 15. Bd2 {[%clk 0:01:55]}  axb4 {[%clk 0:02:39]} 16. axb4 {[%clk 0:01:56]}  Ra3 {[%clk 0:02:35]} 17. Qe2 {[%clk 0:01:55]}  Be7 {[%clk 0:02:31]} 18. g4 {[%clk 0:01:42]}  O-O {[%clk 0:02:27]} 19. f5 {[%clk 0:01:42]}  f6 {[%clk 0:02:23]} 20. Be3 {[%clk 0:00:46]}  Bxb4+ {[%clk 0:02:12]} 21. Kf1 {[%clk 0:00:37]}  Qa5 {[%clk 0:02:12]} 22. exf6 {[%clk 0:00:34]}  Nxf6 {[%clk 0:02:11]} 23. h3 {[%clk 0:00:28]}  exf5 {[%clk 0:02:09]} 24. gxf5 {[%clk 0:00:28]}  Ne4 {[%clk 0:02:04]} 25. Rg1 {[%clk 0:00:28]}  Bxf5 {[%clk 0:02:02]} 26. Bd4 {[%clk 0:00:26]}  Bxh3+ {[%clk 0:01:59]} 27. Rg2 {[%clk 0:00:24]}  Ng3+ {[%clk 0:01:59]} 28. Kf2 {[%clk 0:00:21]}  Bxg2 {[%clk 0:01:54]} 29. Qe6+ {[%clk 0:00:10]}  Kh8 {[%clk 0:01:50]} 30. Kxg2 {[%clk 0:00:05]}  Rxd3 {[%clk 0:01:42]} 31. Bxg7+ {[%clk 0:00:02]}  Kxg7 {[%clk 0:01:41]} 32. Qe5+ {[%clk 0:00:03]}  Rf6 {[%clk 0:01:37]} 0-1


[Site "https://www.chess.com"]